Workbook

Sheet الترحيل
F1: أجمالى الدائن | G1: أجمالى المدين | H1: الفرق
B2: رصيد الحسابات | F2: =F301 -> 12 | G2: =G301 -> 9 | H2: =F2-G2 -> 3
A4: التاريخ | B4: =TODAY() -> 2022-09-22 | G4: 2.793967724e-09
A5: القيد | B5: 25 | D5: =B5 -> 25
A6: -
A7: - | I7: الحسابات
A8: -
A9: -
A10: -
A11: الكود | B11: اسم الحساب | C11: التاريخ | D11: رقم القيد | E11: البيان | F11: القيد
A12: Code | B12: account name | C12: date | D12: entry | E12: Description | F12: دائن | G12: مدين
A13: 100-1 | B13: شريك 1 | C13: 2022-07-31 | D13: 25 | E13: قيد تجريبى | G13: 1
A14: 100-2 | B14: شريك 2 | C14: 2022-07-31 | D14: 25 | E14: قيد تجريبى | F14: 2
A15: 200-1 | B15: الخزينة | C15: 2022-07-31 | D15: 25 | E15: قيد تجريبى | G15: 3
A16: 200-2 | B16: المشتريات | C16: 2022-07-31 | D16: 25 | E16: قيد تجريبى | F16: 4
A17: 200-3 | B17: المبيعات | C17: 2022-07-31 | D17: 25 | E17: قيد تجريبى | G17: 5
A18: 200-4 | B18: مصروفات | C18: 2022-07-31 | D18: 25 | E18: قيد تجريبى | F18: 6
B19: =IFERROR(VLOOKUP(A19,#REF!,2,FALSE),"") ->  | D19: =الترحيل!$B$5 -> 25
B20: =IFERROR(VLOOKUP(A20,#REF!,2,FALSE),"") ->  | D20: =الترحيل!$B$5 -> 25
B21: =IFERROR(VLOOKUP(A21,#REF!,2,FALSE),"") ->  | D21: =الترحيل!$B$5 -> 25
B22: =IFERROR(VLOOKUP(A22,#REF!,2,FALSE),"") ->  | D22: =الترحيل!$B$5 -> 25
B23: =IFERROR(VLOOKUP(A23,#REF!,2,FALSE),"") ->  | D23: =الترحيل!$B$5 -> 25
B24: =IFERROR(VLOOKUP(A24,#REF!,2,FALSE),"") ->  | D24: =الترحيل!$B$5 -> 25
B25: =IFERROR(VLOOKUP(A25,#REF!,2,FALSE),"") ->  | D25: =الترحيل!$B$5 -> 25
B26: =IFERROR(VLOOKUP(A26,#REF!,2,FALSE),"") ->  | D26: =الترحيل!$B$5 -> 25
B27: =IFERROR(VLOOKUP(A27,#REF!,2,FALSE),"") ->  | D27: =الترحيل!$B$5 -> 25
B28: =IFERROR(VLOOKUP(A28,#REF!,2,FALSE),"") ->  | D28: =الترحيل!$B$5 -> 25
B29: =IFERROR(VLOOKUP(A29,#REF!,2,FALSE),"") ->  | D29: =الترحيل!$B$5 -> 25
B30: =IFERROR(VLOOKUP(A30,#REF!,2,FALSE),"") ->  | D30: =الترحيل!$B$5 -> 25
B31: =IFERROR(VLOOKUP(A31,#REF!,2,FALSE),"") ->  | D31: =الترحيل!$B$5 -> 25
B32: =IFERROR(VLOOKUP(A32,#REF!,2,FALSE),"") ->  | D32: =الترحيل!$B$5 -> 25
B33: =IFERROR(VLOOKUP(A33,#REF!,2,FALSE),"") ->  | D33: =الترحيل!$B$5 -> 25
B34: =IFERROR(VLOOKUP(A34,#REF!,2,FALSE),"") ->  | D34: =الترحيل!$B$5 -> 25
B35: =IFERROR(VLOOKUP(A35,#REF!,2,FALSE),"") ->  | D35: =الترحيل!$B$5 -> 25
B36: =IFERROR(VLOOKUP(A36,#REF!,2,FALSE),"") ->  | D36: =الترحيل!$B$5 -> 25
B37: =IFERROR(VLOOKUP(A37,#REF!,2,FALSE),"") ->  | D37: =الترحيل!$B$5 -> 25
B38: =IFERROR(VLOOKUP(A38,#REF!,2,FALSE),"") ->  | D38: =الترحيل!$B$5 -> 25
B39: =IFERROR(VLOOKUP(A39,#REF!,2,FALSE),"") ->  | D39: =الترحيل!$B$5 -> 25
B40: =IFERROR(VLOOKUP(A40,#REF!,2,FALSE),"") ->  | D40: =الترحيل!$B$5 -> 25
B41: =IFERROR(VLOOKUP(A41,#REF!,2,FALSE),"") ->  | D41: =الترحيل!$B$5 -> 25
B42: =IFERROR(VLOOKUP(A42,#REF!,2,FALSE),"") ->  | D42: =الترحيل!$B$5 -> 25
B43: =IFERROR(VLOOKUP(A43,#REF!,2,FALSE),"") ->  | D43: =الترحيل!$B$5 -> 25
B44: =IFERROR(VLOOKUP(A44,#REF!,2,FALSE),"") ->  | D44: =الترحيل!$B$5 -> 25
B45: =IFERROR(VLOOKUP(A45,#REF!,2,FALSE),"") ->  | D45: =الترحيل!$B$5 -> 25
B46: =IFERROR(VLOOKUP(A46,#REF!,2,FALSE),"") ->  | D46: =الترحيل!$B$5 -> 25
B47: =IFERROR(VLOOKUP(A47,#REF!,2,FALSE),"") ->  | D47: =الترحيل!$B$5 -> 25
B48: =IFERROR(VLOOKUP(A48,#REF!,2,FALSE),"") ->  | D48: =الترحيل!$B$5 -> 25
B49: =IFERROR(VLOOKUP(A49,#REF!,2,FALSE),"") ->  | D49: =الترحيل!$B$5 -> 25
B50: =IFERROR(VLOOKUP(A50,#REF!,2,FALSE),"") ->  | D50: =الترحيل!$B$5 -> 25
B51: =IFERROR(VLOOKUP(A51,#REF!,2,FALSE),"") ->  | D51: =الترحيل!$B$5 -> 25
B52: =IFERROR(VLOOKUP(A52,#REF!,2,FALSE),"") ->  | D52: =الترحيل!$B$5 -> 25
B53: =IFERROR(VLOOKUP(A53,#REF!,2,FALSE),"") ->  | D53: =الترحيل!$B$5 -> 25
B54: =IFERROR(VLOOKUP(A54,#REF!,2,FALSE),"") ->  | D54: =الترحيل!$B$5 -> 25
B55: =IFERROR(VLOOKUP(A55,#REF!,2,FALSE),"") ->  | D55: =الترحيل!$B$5 -> 25
B56: =IFERROR(VLOOKUP(A56,#REF!,2,FALSE),"") ->  | D56: =الترحيل!$B$5 -> 25
B57: =IFERROR(VLOOKUP(A57,#REF!,2,FALSE),"") ->  | D57: =الترحيل!$B$5 -> 25
B58: =IFERROR(VLOOKUP(A58,#REF!,2,FALSE),"") ->  | D58: =الترحيل!$B$5 -> 25
B59: =IFERROR(VLOOKUP(A59,#REF!,2,FALSE),"") ->  | D59: =الترحيل!$B$5 -> 25
B60: =IFERROR(VLOOKUP(A60,#REF!,2,FALSE),"") ->  | D60: =الترحيل!$B$5 -> 25
B61: =IFERROR(VLOOKUP(A61,#REF!,2,FALSE),"") ->  | D61: =الترحيل!$B$5 -> 25
B62: =IFERROR(VLOOKUP(A62,#REF!,2,FALSE),"") ->  | D62: =الترحيل!$B$5 -> 25
B63: =IFERROR(VLOOKUP(A63,#REF!,2,FALSE),"") ->  | D63: =الترحيل!$B$5 -> 25
B64: =IFERROR(VLOOKUP(A64,#REF!,2,FALSE),"") ->  | D64: =الترحيل!$B$5 -> 25
B65: =IFERROR(VLOOKUP(A65,#REF!,2,FALSE),"") ->  | D65: =الترحيل!$B$5 -> 25
B66: =IFERROR(VLOOKUP(A66,#REF!,2,FALSE),"") ->  | D66: =الترحيل!$B$5 -> 25
B67: =IFERROR(VLOOKUP(A67,#REF!,2,FALSE),"") ->  | D67: =الترحيل!$B$5 -> 25
B68: =IFERROR(VLOOKUP(A68,#REF!,2,FALSE),"") ->  | D68: =الترحيل!$B$5 -> 25
B69: =IFERROR(VLOOKUP(A69,#REF!,2,FALSE),"") ->  | D69: =الترحيل!$B$5 -> 25
B70: =IFERROR(VLOOKUP(A70,#REF!,2,FALSE),"") ->  | D70: =الترحيل!$B$5 -> 25
B71: =IFERROR(VLOOKUP(A71,#REF!,2,FALSE),"") ->  | D71: =الترحيل!$B$5 -> 25
B72: =IFERROR(VLOOKUP(A72,#REF!,2,FALSE),"") ->  | D72: =الترحيل!$B$5 -> 25
B73: =IFERROR(VLOOKUP(A73,#REF!,2,FALSE),"") ->  | D73: =الترحيل!$B$5 -> 25
B74: =IFERROR(VLOOKUP(A74,#REF!,2,FALSE),"") ->  | D74: =الترحيل!$B$5 -> 25
B75: =IFERROR(VLOOKUP(A75,#REF!,2,FALSE),"") ->  | D75: =الترحيل!$B$5 -> 25
B76: =IFERROR(VLOOKUP(A76,#REF!,2,FALSE),"") ->  | D76: =الترحيل!$B$5 -> 25
B77: =IFERROR(VLOOKUP(A77,#REF!,2,FALSE),"") ->  | D77: =الترحيل!$B$5 -> 25
B78: =IFERROR(VLOOKUP(A78,#REF!,2,FALSE),"") ->  | D78: =الترحيل!$B$5 -> 25
B79: =IFERROR(VLOOKUP(A79,#REF!,2,FALSE),"") ->  | D79: =الترحيل!$B$5 -> 25
B80: =IFERROR(VLOOKUP(A80,#REF!,2,FALSE),"") ->  | D80: =الترحيل!$B$5 -> 25
B81: =IFERROR(VLOOKUP(A81,#REF!,2,FALSE),"") ->  | D81: =الترحيل!$B$5 -> 25
B82: =IFERROR(VLOOKUP(A82,#REF!,2,FALSE),"") ->  | D82: =الترحيل!$B$5 -> 25
B83: =IFERROR(VLOOKUP(A83,#REF!,2,FALSE),"") ->  | D83: =الترحيل!$B$5 -> 25
B84: =IFERROR(VLOOKUP(A84,#REF!,2,FALSE),"") ->  | D84: =الترحيل!$B$5 -> 25
B85: =IFERROR(VLOOKUP(A85,#REF!,2,FALSE),"") ->  | D85: =الترحيل!$B$5 -> 25
B86: =IFERROR(VLOOKUP(A86,#REF!,2,FALSE),"") ->  | D86: =الترحيل!$B$5 -> 25
B87: =IFERROR(VLOOKUP(A87,#REF!,2,FALSE),"") ->  | D87: =الترحيل!$B$5 -> 25
B88: =IFERROR(VLOOKUP(A88,#REF!,2,FALSE),"") ->  | D88: =الترحيل!$B$5 -> 25
B89: =IFERROR(VLOOKUP(A89,#REF!,2,FALSE),"") ->  | D89: =الترحيل!$B$5 -> 25
B90: =IFERROR(VLOOKUP(A90,#REF!,2,FALSE),"") ->  | D90: =الترحيل!$B$5 -> 25
B91: =IFERROR(VLOOKUP(A91,#REF!,2,FALSE),"") ->  | D91: =الترحيل!$B$5 -> 25
B92: =IFERROR(VLOOKUP(A92,#REF!,2,FALSE),"") ->  | D92: =الترحيل!$B$5 -> 25
B93: =IFERROR(VLOOKUP(A93,#REF!,2,FALSE),"") ->  | D93: =الترحيل!$B$5 -> 25
B94: =IFERROR(VLOOKUP(A94,#REF!,2,FALSE),"") ->  | D94: =الترحيل!$B$5 -> 25
B95: =IFERROR(VLOOKUP(A95,#REF!,2,FALSE),"") ->  | D95: =الترحيل!$B$5 -> 25
B96: =IFERROR(VLOOKUP(A96,#REF!,2,FALSE),"") ->  | D96: =الترحيل!$B$5 -> 25
B97: =IFERROR(VLOOKUP(A97,#REF!,2,FALSE),"") ->  | D97: =الترحيل!$B$5 -> 25
B98: =IFERROR(VLOOKUP(A98,#REF!,2,FALSE),"") ->  | D98: =الترحيل!$B$5 -> 25
B99: =IFERROR(VLOOKUP(A99,#REF!,2,FALSE),"") ->  | D99: =الترحيل!$B$5 -> 25
B100: =IFERROR(VLOOKUP(A100,#REF!,2,FALSE),"") ->  | D100: =الترحيل!$B$5 -> 25
B101: =IFERROR(VLOOKUP(A101,#REF!,2,FALSE),"") ->  | D101: =الترحيل!$B$5 -> 25
B102: =IFERROR(VLOOKUP(A102,#REF!,2,FALSE),"") ->  | D102: =الترحيل!$B$5 -> 25
B103: =IFERROR(VLOOKUP(A103,#REF!,2,FALSE),"") ->  | D103: =الترحيل!$B$5 -> 25
B104: =IFERROR(VLOOKUP(A104,#REF!,2,FALSE),"") ->  | D104: =الترحيل!$B$5 -> 25
B105: =IFERROR(VLOOKUP(A105,#REF!,2,FALSE),"") ->  | D105: =الترحيل!$B$5 -> 25
B106: =IFERROR(VLOOKUP(A106,#REF!,2,FALSE),"") ->  | D106: =الترحيل!$B$5 -> 25
B107: =IFERROR(VLOOKUP(A107,#REF!,2,FALSE),"") ->  | D107: =الترحيل!$B$5 -> 25
B108: =IFERROR(VLOOKUP(A108,#REF!,2,FALSE),"") ->  | D108: =الترحيل!$B$5 -> 25
B109: =IFERROR(VLOOKUP(A109,#REF!,2,FALSE),"") ->  | D109: =الترحيل!$B$5 -> 25
B110: =IFERROR(VLOOKUP(A110,#REF!,2,FALSE),"") ->  | D110: =الترحيل!$B$5 -> 25
B111: =IFERROR(VLOOKUP(A111,#REF!,2,FALSE),"") ->  | D111: =الترحيل!$B$5 -> 25
B112: =IFERROR(VLOOKUP(A112,#REF!,2,FALSE),"") ->  | D112: =الترحيل!$B$5 -> 25
B113: =IFERROR(VLOOKUP(A113,#REF!,2,FALSE),"") ->  | D113: =الترحيل!$B$5 -> 25
B114: =IFERROR(VLOOKUP(A114,#REF!,2,FALSE),"") ->  | D114: =الترحيل!$B$5 -> 25
B115: =IFERROR(VLOOKUP(A115,#REF!,2,FALSE),"") ->  | D115: =الترحيل!$B$5 -> 25
B116: =IFERROR(VLOOKUP(A116,#REF!,2,FALSE),"") ->  | D116: =الترحيل!$B$5 -> 25
B117: =IFERROR(VLOOKUP(A117,#REF!,2,FALSE),"") ->  | D117: =الترحيل!$B$5 -> 25
B118: =IFERROR(VLOOKUP(A118,#REF!,2,FALSE),"") ->  | D118: =الترحيل!$B$5 -> 25
B119: =IFERROR(VLOOKUP(A119,#REF!,2,FALSE),"") ->  | D119: =الترحيل!$B$5 -> 25
B120: =IFERROR(VLOOKUP(A120,#REF!,2,FALSE),"") ->  | D120: =الترحيل!$B$5 -> 25
B121: =IFERROR(VLOOKUP(A121,#REF!,2,FALSE),"") ->  | D121: =الترحيل!$B$5 -> 25
B122: =IFERROR(VLOOKUP(A122,#REF!,2,FALSE),"") ->  | D122: =الترحيل!$B$5 -> 25
B123: =IFERROR(VLOOKUP(A123,#REF!,2,FALSE),"") ->  | D123: =الترحيل!$B$5 -> 25
B124: =IFERROR(VLOOKUP(A124,#REF!,2,FALSE),"") ->  | D124: =الترحيل!$B$5 -> 25
B125: =IFERROR(VLOOKUP(A125,#REF!,2,FALSE),"") ->  | D125: =الترحيل!$B$5 -> 25
B126: =IFERROR(VLOOKUP(A126,#REF!,2,FALSE),"") ->  | D126: =الترحيل!$B$5 -> 25
B127: =IFERROR(VLOOKUP(A127,#REF!,2,FALSE),"") ->  | D127: =الترحيل!$B$5 -> 25
B128: =IFERROR(VLOOKUP(A128,#REF!,2,FALSE),"") ->  | D128: =الترحيل!$B$5 -> 25
B129: =IFERROR(VLOOKUP(A129,#REF!,2,FALSE),"") ->  | D129: =الترحيل!$B$5 -> 25
B130: =IFERROR(VLOOKUP(A130,#REF!,2,FALSE),"") ->  | D130: =الترحيل!$B$5 -> 25
B131: =IFERROR(VLOOKUP(A131,#REF!,2,FALSE),"") ->  | D131: =الترحيل!$B$5 -> 25
B132: =IFERROR(VLOOKUP(A132,#REF!,2,FALSE),"") ->  | D132: =الترحيل!$B$5 -> 25
B133: =IFERROR(VLOOKUP(A133,#REF!,2,FALSE),"") ->  | D133: =الترحيل!$B$5 -> 25
B134: =IFERROR(VLOOKUP(A134,#REF!,2,FALSE),"") ->  | D134: =الترحيل!$B$5 -> 25
B135: =IFERROR(VLOOKUP(A135,#REF!,2,FALSE),"") ->  | D135: =الترحيل!$B$5 -> 25
B136: =IFERROR(VLOOKUP(A136,#REF!,2,FALSE),"") ->  | D136: =الترحيل!$B$5 -> 25
B137: =IFERROR(VLOOKUP(A137,#REF!,2,FALSE),"") ->  | D137: =الترحيل!$B$5 -> 25
B138: =IFERROR(VLOOKUP(A138,#REF!,2,FALSE),"") ->  | D138: =الترحيل!$B$5 -> 25
B139: =IFERROR(VLOOKUP(A139,#REF!,2,FALSE),"") ->  | D139: =الترحيل!$B$5 -> 25
B140: =IFERROR(VLOOKUP(A140,#REF!,2,FALSE),"") ->  | D140: =الترحيل!$B$5 -> 25
B141: =IFERROR(VLOOKUP(A141,#REF!,2,FALSE),"") ->  | D141: =الترحيل!$B$5 -> 25
B142: =IFERROR(VLOOKUP(A142,#REF!,2,FALSE),"") ->  | D142: =الترحيل!$B$5 -> 25
B143: =IFERROR(VLOOKUP(A143,#REF!,2,FALSE),"") ->  | D143: =الترحيل!$B$5 -> 25
B144: =IFERROR(VLOOKUP(A144,#REF!,2,FALSE),"") ->  | D144: =الترحيل!$B$5 -> 25
B145: =IFERROR(VLOOKUP(A145,#REF!,2,FALSE),"") ->  | D145: =الترحيل!$B$5 -> 25
B146: =IFERROR(VLOOKUP(A146,#REF!,2,FALSE),"") ->  | D146: =الترحيل!$B$5 -> 25
B147: =IFERROR(VLOOKUP(A147,#REF!,2,FALSE),"") ->  | D147: =الترحيل!$B$5 -> 25
B148: =IFERROR(VLOOKUP(A148,#REF!,2,FALSE),"") ->  | D148: =الترحيل!$B$5 -> 25
B149: =IFERROR(VLOOKUP(A149,#REF!,2,FALSE),"") ->  | D149: =الترحيل!$B$5 -> 25
B150: =IFERROR(VLOOKUP(A150,#REF!,2,FALSE),"") ->  | D150: =الترحيل!$B$5 -> 25
B151: =IFERROR(VLOOKUP(A151,#REF!,2,FALSE),"") ->  | D151: =الترحيل!$B$5 -> 25
B152: =IFERROR(VLOOKUP(A152,#REF!,2,FALSE),"") ->  | D152: =الترحيل!$B$5 -> 25
B153: =IFERROR(VLOOKUP(A153,#REF!,2,FALSE),"") ->  | D153: =الترحيل!$B$5 -> 25
B154: =IFERROR(VLOOKUP(A154,#REF!,2,FALSE),"") ->  | D154: =الترحيل!$B$5 -> 25
B155: =IFERROR(VLOOKUP(A155,#REF!,2,FALSE),"") ->  | D155: =الترحيل!$B$5 -> 25
B156: =IFERROR(VLOOKUP(A156,#REF!,2,FALSE),"") ->  | D156: =الترحيل!$B$5 -> 25
B157: =IFERROR(VLOOKUP(A157,#REF!,2,FALSE),"") ->  | D157: =الترحيل!$B$5 -> 25
B158: =IFERROR(VLOOKUP(A158,#REF!,2,FALSE),"") ->  | D158: =الترحيل!$B$5 -> 25
B159: =IFERROR(VLOOKUP(A159,#REF!,2,FALSE),"") ->  | D159: =الترحيل!$B$5 -> 25
B160: =IFERROR(VLOOKUP(A160,#REF!,2,FALSE),"") ->  | D160: =الترحيل!$B$5 -> 25
B161: =IFERROR(VLOOKUP(A161,#REF!,2,FALSE),"") ->  | D161: =الترحيل!$B$5 -> 25
B162: =IFERROR(VLOOKUP(A162,#REF!,2,FALSE),"") ->  | D162: =الترحيل!$B$5 -> 25
B163: =IFERROR(VLOOKUP(A163,#REF!,2,FALSE),"") ->  | D163: =الترحيل!$B$5 -> 25
B164: =IFERROR(VLOOKUP(A164,#REF!,2,FALSE),"") ->  | D164: =الترحيل!$B$5 -> 25
B165: =IFERROR(VLOOKUP(A165,#REF!,2,FALSE),"") ->  | D165: =الترحيل!$B$5 -> 25
B166: =IFERROR(VLOOKUP(A166,#REF!,2,FALSE),"") ->  | D166: =الترحيل!$B$5 -> 25
B167: =IFERROR(VLOOKUP(A167,#REF!,2,FALSE),"") ->  | D167: =الترحيل!$B$5 -> 25
B168: =IFERROR(VLOOKUP(A168,#REF!,2,FALSE),"") ->  | D168: =الترحيل!$B$5 -> 25
B169: =IFERROR(VLOOKUP(A169,#REF!,2,FALSE),"") ->  | D169: =الترحيل!$B$5 -> 25
B170: =IFERROR(VLOOKUP(A170,#REF!,2,FALSE),"") ->  | D170: =الترحيل!$B$5 -> 25
B171: =IFERROR(VLOOKUP(A171,#REF!,2,FALSE),"") ->  | D171: =الترحيل!$B$5 -> 25
B172: =IFERROR(VLOOKUP(A172,#REF!,2,FALSE),"") ->  | D172: =الترحيل!$B$5 -> 25
B173: =IFERROR(VLOOKUP(A173,#REF!,2,FALSE),"") ->  | D173: =الترحيل!$B$5 -> 25
B174: =IFERROR(VLOOKUP(A174,#REF!,2,FALSE),"") ->  | D174: =الترحيل!$B$5 -> 25
B175: =IFERROR(VLOOKUP(A175,#REF!,2,FALSE),"") ->  | D175: =الترحيل!$B$5 -> 25
B176: =IFERROR(VLOOKUP(A176,#REF!,2,FALSE),"") ->  | D176: =الترحيل!$B$5 -> 25
B177: =IFERROR(VLOOKUP(A177,#REF!,2,FALSE),"") ->  | D177: =الترحيل!$B$5 -> 25
B178: =IFERROR(VLOOKUP(A178,#REF!,2,FALSE),"") ->  | D178: =الترحيل!$B$5 -> 25
B179: =IFERROR(VLOOKUP(A179,#REF!,2,FALSE),"") ->  | D179: =الترحيل!$B$5 -> 25
B180: =IFERROR(VLOOKUP(A180,#REF!,2,FALSE),"") ->  | D180: =الترحيل!$B$5 -> 25
B181: =IFERROR(VLOOKUP(A181,#REF!,2,FALSE),"") ->  | D181: =الترحيل!$B$5 -> 25
B182: =IFERROR(VLOOKUP(A182,#REF!,2,FALSE),"") ->  | D182: =الترحيل!$B$5 -> 25
B183: =IFERROR(VLOOKUP(A183,#REF!,2,FALSE),"") ->  | D183: =الترحيل!$B$5 -> 25
B184: =IFERROR(VLOOKUP(A184,#REF!,2,FALSE),"") ->  | D184: =الترحيل!$B$5 -> 25
B185: =IFERROR(VLOOKUP(A185,#REF!,2,FALSE),"") ->  | D185: =الترحيل!$B$5 -> 25
B186: =IFERROR(VLOOKUP(A186,#REF!,2,FALSE),"") ->  | D186: =الترحيل!$B$5 -> 25
B187: =IFERROR(VLOOKUP(A187,#REF!,2,FALSE),"") ->  | D187: =الترحيل!$B$5 -> 25
B188: =IFERROR(VLOOKUP(A188,#REF!,2,FALSE),"") ->  | D188: =الترحيل!$B$5 -> 25
B189: =IFERROR(VLOOKUP(A189,#REF!,2,FALSE),"") ->  | D189: =الترحيل!$B$5 -> 25
B190: =IFERROR(VLOOKUP(A190,#REF!,2,FALSE),"") ->  | D190: =الترحيل!$B$5 -> 25
B191: =IFERROR(VLOOKUP(A191,#REF!,2,FALSE),"") ->  | D191: =الترحيل!$B$5 -> 25
B192: =IFERROR(VLOOKUP(A192,#REF!,2,FALSE),"") ->  | D192: =الترحيل!$B$5 -> 25
B193: =IFERROR(VLOOKUP(A193,#REF!,2,FALSE),"") ->  | D193: =الترحيل!$B$5 -> 25
B194: =IFERROR(VLOOKUP(A194,#REF!,2,FALSE),"") ->  | D194: =الترحيل!$B$5 -> 25
B195: =IFERROR(VLOOKUP(A195,#REF!,2,FALSE),"") ->  | D195: =الترحيل!$B$5 -> 25
B196: =IFERROR(VLOOKUP(A196,#REF!,2,FALSE),"") ->  | D196: =الترحيل!$B$5 -> 25
B197: =IFERROR(VLOOKUP(A197,#REF!,2,FALSE),"") ->  | D197: =الترحيل!$B$5 -> 25
B198: =IFERROR(VLOOKUP(A198,#REF!,2,FALSE),"") ->  | D198: =الترحيل!$B$5 -> 25
B199: =IFERROR(VLOOKUP(A199,#REF!,2,FALSE),"") ->  | D199: =الترحيل!$B$5 -> 25
B200: =IFERROR(VLOOKUP(A200,#REF!,2,FALSE),"") ->  | D200: =الترحيل!$B$5 -> 25
B201: =IFERROR(VLOOKUP(A201,#REF!,2,FALSE),"") ->  | D201: =الترحيل!$B$5 -> 25
... 100 more rows

Sheet 100-1
A2: المجموعة
A3: كود المجموعة | D3: =VLOOKUP(D2,#REF!,2,FALSE) -> 
A4: اسم الحساب | D4: شريك 1
A6: كود الحساب | C6: =D3&"-"&D6 ->  | D6: 1
A7: ملاحظات | D7: 0
A8: صافى خصومات | C8: =C10-C9 -> 0
A9: ضرائب | D9: الرصيد
A10: أجالى خصومات | C10: =J7 -> 0 | D10: أجمالى الدائن | E10: أجمالى المدين | F10: اجمالى جم
A11: الرئيسية | D11: =D24 -> 0 | E11: =E24 -> -9749954.58 | F11: =E11-D11 -> -9749954.58
A12: الكود التالى | C12: =MAX(IF(#REF!=$D$3,#REF!))+1 -> 
A14: التاريخ | B14: رقم القيد | C14: البيان | D14: الحركة | F14: رصيد
D15: دائن | E15: مدين
A16: 2021-12-31 | F16: =E16-D16 -> 0 | G16: =F16-E16 -> 0
A17: 2022-01-01 | B17: 4 | C17: ترحيل رصيد 2021 | E17: -9799959.58 | F17: =F16+E17-D17 -> -9799959.58 | G17: =D17+E17 -> -9799959.58
A18: 2022-01-03 | B18: 3 | C18: دفعة | E18: 50000 | F18: =F17+E18-D18 -> -9749959.58 | G18: =D18+E18 -> 50000
A19: 2022-07-31 | B19: 25 | C19: قيد تجريبى | E19: 1 | F19: =F18+E19-D19 -> -9749958.58 | G19: =D19+E19 -> 1
A20: 2022-07-31 | B20: 25 | C20: قيد تجريبى | E20: 1
A21: 2022-07-31 | B21: 25 | C21: قيد تجريبى | E21: 1
A22: 2022-07-31 | B22: 25 | C22: قيد تجريبى | E22: 1
A23: 2022-07-31 | B23: 25 | C23: قيد تجريبى | E23: 1
C24: الأجمالى | D24: =SUM(D16:D23) -> 0 | E24: =SUM(E16:E23) -> -9749954.58 | F24: =E24-D24 -> -9749954.58 | G24: =F24-E24 -> 0

Sheet 100-2
A2: المجموعة
A3: كود المجموعة | D3: =VLOOKUP(D2,#REF!,2,FALSE) -> 
A4: اسم الحساب | D4: شريك 2
A6: كود الحساب | C6: =D3&"-"&D6 ->  | D6: 2
A7: ملاحظات
A8: صافى خصومات | C8: =C10-C9 -> 0
A9: ضرائب | D9: الرصيد
A10: أجالى خصومات | C10: =J7 -> 0 | D10: أجمالى الدائن | E10: أجمالى المدين | F10: اجمالى جم
A11: الرئيسية | D11: =D24 -> 10 | E11: =E24 -> -8067373.53 | F11: =E11-D11 -> -8067383.53
A12: الكود التالى | C12: =MAX(IF(#REF!=$D$3,#REF!))+1 -> 
A14: التاريخ | B14: رقم القيد | C14: البيان | D14: الحركة | F14: رصيد
D15: دائن | E15: مدين
A16: 2021-12-31 | F16: =E16-D16 -> 0 | G16: =F16-E16 -> 0
A17: 2022-01-01 | B17: 4 | C17: ترحيل رصيد 2021 | E17: -8071373.53 | F17: =F16+E17-D17 -> -8071373.53 | G17: =G16+F17-E17 -> 0
A18: 2022-01-31 | B18: 2 | C18: دفعة | E18: 4000 | F18: -8067373.53 | G18: =D18+E18 -> 4000
A19: 2022-07-31 | B19: 25 | C19: قيد تجريبى | D19: 2 | F19: =F18+E19-D19 -> -8067375.53 | G19: =D19+E19 -> 2
A20: 2022-07-31 | B20: 25 | C20: قيد تجريبى | D20: 2
A21: 2022-07-31 | B21: 25 | C21: قيد تجريبى | D21: 2
A22: 2022-07-31 | B22: 25 | C22: قيد تجريبى | D22: 2
A23: 2022-07-31 | B23: 25 | C23: قيد تجريبى | D23: 2
C24: الأجمالى | D24: =SUM(D16:D23) -> 10 | E24: =SUM(E16:E23) -> -8067373.53 | F24: =E24-D24 -> -8067383.53 | G24: =F24-E24 -> -10

Sheet 200-1
A2: المجموعة
A3: كود المجموعة | D3: =VLOOKUP(D2,#REF!,2,FALSE) -> 
A4: اسم الحساب | D4: الخزينة
A6: كود الحساب | C6: =D3&"-"&D6 ->  | D6: 1
A7: ملاحظات
A8: صافى خصومات | C8: =C10-C9 -> 0
A9: ضرائب | D9: الرصيد
A10: أجالى خصومات | C10: =J7 -> 0 | D10: أجمالى الدائن | E10: أجمالى المدين | F10: اجمالى جم
A11: الرئيسية | D11: =D24 -> 55500 | E11: =E24 -> 1033544.052 | F11: =E11-D11 -> 978044.052
A12: الكود التالى | C12: =MAX(IF(#REF!=$D$3,#REF!))+1 -> 
A14: التاريخ | B14: رقم القيد | C14: البيان | D14: الحركة | F14: رصيد
D15: دائن | E15: مدين
A16: 2021-12-31 | F16: =E16-D16 -> 0 | G16: =F16-E16 -> 0
A17: 2022-01-01 | B17: 4 | C17: ترحيل رصيد 2021 | E17: 1033529.052 | F17: =F16+E17-D17 -> 1033529.052 | G17: =G16+F17-E17 -> 0
A18: 2022-01-03 | B18: 29 | C18: بنك | D18: 55500 | E18: 0 | F18: 978029.052 | G18: =D18+E18 -> 55500
A19: 2022-07-31 | B19: 25 | C19: قيد تجريبى | E19: 3 | F19: =F18+E19-D19 -> 978032.052 | G19: =D19+E19 -> 3
A20: 2022-07-31 | B20: 25 | C20: قيد تجريبى | E20: 3
A21: 2022-07-31 | B21: 25 | C21: قيد تجريبى | E21: 3
A22: 2022-07-31 | B22: 25 | C22: قيد تجريبى | E22: 3
A23: 2022-07-31 | B23: 25 | C23: قيد تجريبى | E23: 3
C24: الأجمالى | D24: =SUM(D16:D23) -> 55500 | E24: =SUM(E16:E23) -> 1033544.052 | F24: =E24-D24 -> 978044.052 | G24: =F24-E24 -> -55500

Sheet 200-2
A2: المجموعة
A3: كود المجموعة | D3: =VLOOKUP(D2,#REF!,2,FALSE) -> 
A4: اسم الحساب | D4: المشتريات
A6: كود الحساب | C6: =D3&"-"&D6 ->  | D6: 2
A7: ملاحظات
A8: صافى خصومات | C8: =C10-C9 -> 0
A9: ضرائب | D9: الرصيد
A10: أجالى خصومات | C10: =J7 -> 0 | D10: أجمالى الدائن | E10: أجمالى المدين | F10: اجمالى جم
A11: الرئيسية | D11: =D24 -> 20 | E11: =E24 -> 136500 | F11: =E11-D11 -> 136480
A12: الكود التالى | C12: =MAX(IF(#REF!=$D$3,#REF!))+1 -> 
A14: التاريخ | B14: رقم القيد | C14: البيان | D14: الحركة | F14: رصيد
D15: دائن | E15: مدين
A16: 2021-12-31 | F16: =E16-D16 -> 0 | G16: =F16-E16 -> 0
A17: 2022-01-01 | B17: 4 | C17: ترحيل رصيد 2021 | E17: 0 | F17: =F16+E17-D17 -> 0 | G17: =G16+F17-E17 -> 0
A18: 2022-01-01 | B18: 5 | C18: مشتريات | D18: 0 | E18: 136500 | F18: =F17+E18-D18 -> 136500 | G18: =D18+E18 -> 136500
A19: 2022-07-31 | B19: 25 | C19: قيد تجريبى | D19: 4 | F19: =F18+E19-D19 -> 136496 | G19: =D19+E19 -> 4
A20: 2022-07-31 | B20: 25 | C20: قيد تجريبى | D20: 4
A21: 2022-07-31 | B21: 25 | C21: قيد تجريبى | D21: 4
A22: 2022-07-31 | B22: 25 | C22: قيد تجريبى | D22: 4
A23: 2022-07-31 | B23: 25 | C23: قيد تجريبى | D23: 4
C24: الأجمالى | D24: =SUM(D16:D23) -> 20 | E24: =SUM(E16:E23) -> 136500 | F24: =E24-D24 -> 136480 | G24: =F24-E24 -> -20

Sheet 200-3
A2: المجموعة
A3: كود المجموعة | D3: =VLOOKUP(D2,#REF!,2,FALSE) -> 
A4: اسم الحساب | D4: المبيعات
A6: كود الحساب | C6: =D3&"-"&D6 ->  | D6: 3
A7: ملاحظات
A8: صافى خصومات | C8: =C10-C9 -> 0
A9: ضرائب | D9: الرصيد
A10: أجالى خصومات | C10: =J7 -> 0 | D10: أجمالى الدائن | E10: أجمالى المدين | F10: اجمالى جم
A11: الرئيسية | D11: =D22 -> 18675.6 | E11: =E22 -> 15 | F11: =E11-D11 -> -18660.6
A12: الكود التالى | C12: =MAX(IF(#REF!=$D$3,#REF!))+1 -> 
A14: التاريخ | B14: رقم القيد | C14: البيان | D14: الحركة | F14: رصيد
D15: دائن | E15: مدين
A16: 2021-12-31 | F16: =E16-D16 -> 0 | G16: =F16-E16 -> 0
A17: 2022-01-01 | B17: 4 | C17: ترحيل رصيد 2021 | E17: 0 | F17: =F16+E17-D17 -> 0 | G17: =G16+F17-E17 -> 0
A18: 2022-01-01 | B18: 6 | C18: مبيعات | D18: 18675.6 | E18: 0 | F18: =F17+E18-D18 -> -18675.6 | G18: =D18+E18 -> 18675.6
A19: 2022-07-31 | B19: 25 | C19: قيد تجريبى | E19: 5 | F19: =F18+E19-D19 -> -18670.6 | G19: =D19+E19 -> 5
A20: 2022-07-31 | B20: 25 | C20: قيد تجريبى | E20: 5
A21: 2022-07-31 | B21: 25 | C21: قيد تجريبى | E21: 5
C22: الأجمالى | D22: =SUM(D16:D21) -> 18675.6 | E22: =SUM(E16:E21) -> 15 | F22: =E22-D22 -> -18660.6 | G22: =F22-E22 -> -18675.6

Sheet 200-4
A2: المجموعة
A3: كود المجموعة | D3: =VLOOKUP(D2,#REF!,2,FALSE) -> 
A4: اسم الحساب | D4: مصروفات
A6: كود الحساب | C6: =D3&"-"&D6 ->  | D6: 4
A7: ملاحظات
A8: صافى خصومات | C8: =C10-C9 -> 0
A9: ضرائب | D9: الرصيد
A10: أجالى خصومات | C10: =J7 -> 0 | D10: أجمالى الدائن | E10: أجمالى المدين | F10: اجمالى جم
A11: الرئيسية | D11: =D24 -> 30 | E11: =E24 -> 130000 | F11: =E11-D11 -> 129970
A12: الكود التالى | C12: =MAX(IF(#REF!=$D$3,#REF!))+1 -> 
A14: التاريخ | B14: رقم القيد | C14: البيان | D14: الحركة | F14: رصيد
D15: دائن | E15: مدين
A16: 2021-12-31 | F16: =E16-D16 -> 0 | G16: =F16-E16 -> 0
A17: 2022-01-01 | B17: 4 | C17: ترحيل رصيد 2021 | E17: 100000 | F17: =F16+E17-D17 -> 100000 | G17: =G16+F17-E17 -> 0
A18: 2022-01-01 | C18: مصروف | E18: 30000 | F18: =F17+E18-D18 -> 130000 | G18: =D18+E18 -> 30000
A19: 2022-07-31 | B19: 25 | C19: قيد تجريبى | D19: 6 | F19: =F18+E19-D19 -> 129994 | G19: =D19+E19 -> 6
A20: 2022-07-31 | B20: 25 | C20: قيد تجريبى | D20: 6
A21: 2022-07-31 | B21: 25 | C21: قيد تجريبى | D21: 6
A22: 2022-07-31 | B22: 25 | C22: قيد تجريبى | D22: 6
A23: 2022-07-31 | B23: 25 | C23: قيد تجريبى | D23: 6
C24: الأجمالى | D24: =SUM(D16:D23) -> 30 | E24: =SUM(E16:E23) -> 130000 | F24: =E24-D24 -> 129970 | G24: =F24-E24 -> -30
